bitfinex/quotes_SOLUSD_20250704
["timestamp","ask_amount","ask_price","bid_price","bid_amount"]
[1751645853148,7.9,146.71,146.69,12.90441555]
[1751645853548,14.71626952,146.71,146.69,12.90441555]
[1751645854064,14.71626952,146.71,146.65,6.81895669]
[1751645854235,14.71626952,146.71,146.69,12.90441555]
[1751645855643,7.9,146.71,146.69,12.90441555]
[1751645855967,7.9,146.71,146.7,12.90441555]
[1751645856168,7.9,146.71,146.65,23.86634843]
[1751645856461,14.7162483,146.71,146.69,12.90441555]
[1751645857047,7.9,146.71,146.69,12.90441555]
[1751645857246,7.9,146.71,146.7,12.90441555]
[1751645858260,7.9,146.71,146.7,19.72104813]
[1751645858462,89.8,146.72,146.7,19.72104813]
[1751645858754,0.2,146.74,146.71,12.90441555]
[1751645858960,0.2,146.74,146.73,12.90441555]
[1751645859135,7.01480167,146.74,146.72,12.90441555]
[1751645859662,7.01480167,146.74,146.7,12.90441555]
[1751645860041,7.01480167,146.74,146.67,6.81802686]
[1751645860258,90.0,146.74,146.72,12.90441555]
[1751645861163,0.2,146.74,146.73,12.90441555]
[1751645862554,1.5433,146.73,146.63,2.92]
[1751645862845,12.90441555,146.71,146.67,12.90441555]
[1751645863456,89.8,146.72,146.69,12.90441555]
[1751645863969,96.61571164,146.72,146.69,12.90441555]
[1751645864150,96.61571164,146.72,146.67,6.81784884]
[1751645864359,96.61571164,146.72,146.69,12.90441555]
[1751645864659,89.8,146.72,146.69,12.90441555]
[1751645865165,89.8,146.72,146.7,12.90441555]
[1751645865362,0.2,146.74,146.71,12.90441555]
[1751645865670,0.2,146.74,146.73,12.90441555]
[1751645867554,0.2,146.74,146.73,19.71965442]
[1751645875002,0.2,146.77,146.74,18.64964886]
[1751645875350,0.2,146.77,146.76,12.90441555]
[1751645877244,0.2,146.77,146.76,19.71826128]
[1751645877443,0.2,146.77,146.76,38.36791014]
[1751645878477,0.2,146.79,146.77,44.45847996]
[1751645878650,0.2,146.79,146.78,44.45847996]
[1751645878849,0.1,146.85,146.79,44.64964886]
[1751645879081,0.1,146.85,146.81,31.55406441]
[1751645879383,0.1,146.85,146.82,23.83871406]
[1751645879565,0.1,146.85,146.84,12.90441555]
[1751645880253,0.1,146.85,146.84,31.55406441]
[1751645881382,0.1,146.85,146.84,38.36419788]
[1751645881593,0.1,146.85,146.84,19.71454902]
[1751645882096,0.1,146.85,146.83,12.90441555]
[1751645882280,6.90975114,146.85,146.79,32.81245316]
[1751645882480,8.46295114,146.85,146.82,12.90441555]
[1751645883078,27.57966669,146.85,146.81,12.90441555]
[1751645883279,27.57966669,146.85,146.8,12.90441555]
[1751645883699,7.8655,146.85,146.82,12.90441555]
[1751645883878,7.8655,146.85,146.77,18.64964886]
[1751645883879,0.1,146.85,146.84,12.90441555]
[1751645885573,0.1,146.85,146.81,25.46117396]
[1751645885906,0.1,146.85,146.84,12.90441555]
[1751645887785,19.81408528,146.85,146.75,6.81431005]
[1751645887991,19.81408528,146.85,146.81,12.90441555]
[1751645887992,6.90966973,146.85,146.81,12.90441555]
[1751645888303,19.81408528,146.85,146.81,12.90441555]
[1751645889398,6.90966973,146.85,146.81,12.90441555]
[1751645889605,0.1,146.85,146.84,12.90441555]
[1751645890600,0.1,146.85,146.79,39.58566086]
[1751645890779,0.1,146.85,146.84,12.90441555]
[1751645893606,0.1,146.85,146.84,19.71454902]
[1751645895308,0.1,146.85,146.84,38.36419788]
[1751645897314,0.1,146.85,146.84,19.71454902]
[1751645900700,0.1,146.85,146.84,6.81013347]
[1751645901209,0.1,146.85,146.82,6.81106116]
[1751645901393,6.4898,146.85,146.82,12.90441555]
[1751645901718,0.1,146.85,146.84,12.90441555]
[1751645902700,0.1,146.85,146.84,19.71454902]
[1751645903316,0.1,146.85,146.84,38.36419788]
[1751645903488,0.1,146.85,146.84,39.04521122]
[1751645905411,0.1,146.85,146.84,38.36419788]
[1751645905631,0.1,146.85,146.84,12.90441555]
[1751645905912,0.1,146.85,146.8,6.81187708]
[1751645906111,0.1,146.85,146.82,12.90441555]
[1751645906307,0.1,146.85,146.8,6.81187708]
[1751645906308,1.6607,146.84,146.8,6.81187708]
[1751645906510,1.6607,146.84,146.82,12.90441555]
[1751645907323,14.56511555,146.84,146.8,12.90441555]
[1751645907494,14.56511555,146.84,146.78,26.0]
[1751645907687,21.37533053,146.84,146.8,12.90441555]
[1751645907888,21.37533053,146.84,146.78,32.81291729]
[1751645908184,12.90441555,146.81,146.76,0.2]
[1751645908388,12.90441555,146.81,146.77,12.90441555]
[1751645908604,12.90441555,146.82,146.78,12.90441555]
[1751645908799,12.90441555,146.81,146.77,12.90441555]
[1751645909120,19.71640465,146.8,146.76,0.2]
[1751645909322,6.2792,146.79,146.76,13.10441555]
[1751645909621,6.2792,146.79,146.76,0.2]
[1751645909999,19.18361555,146.79,146.76,0.2]
[1751645910189,6.2792,146.79,146.76,0.2]
[1751645910604,19.18361555,146.79,146.76,0.2]
[1751645910990,19.71733284,146.78,146.76,0.2]
[1751645911600,6.81291729,146.78,146.76,0.2]
[1751645912410,25.99621687,146.79,146.76,0.2]
[1751645913720,6.2792,146.79,146.77,12.90441555]
[1751645914826,6.2792,146.79,146.76,13.10441555]
[1751645915126,25.99613219,146.79,146.76,0.2]
[1751645917213,14.44321555,146.77,146.76,0.2]
[1751645917622,1.5388,146.77,146.76,0.2]
[1751645920334,1.5388,146.77,146.76,13.10441555]
[1751645921003,6.2792,146.79,146.76,13.10441555]
[1751645921413,13.09171801,146.79,146.76,13.10441555]
[1751645921906,25.99613356,146.79,146.76,0.2]
[1751645922808,6.2792,146.79,146.77,12.90441555]
[1751645923203,6.2792,146.79,146.76,0.2]
[1751645923405,6.2792,146.79,146.76,13.10441555]
[1751645923714,6.2792,146.79,146.76,19.91824679]
[1751645924304,6.2792,146.79,146.77,12.90441555]
[1751645924735,6.2792,146.79,146.76,7.01383124]
[1751645924916,6.2792,146.79,146.77,12.90441555]
[1751645925241,6.2792,146.79,146.78,12.90441555]
[1751645925542,21.26332283,146.81,146.77,12.90441555]
[1751645925710,111.06332283,146.81,146.76,13.10441555]
[1751645925910,111.06332283,146.81,146.77,12.90441555]
[1751645927029,91.3473,146.81,146.78,12.90441555]
[1751645927535,6.3337,146.83,146.8,12.90441555]
[1751645927708,6.3337,146.83,146.81,12.90441555]
[1751645927910,6.3337,146.83,146.77,6.81300981]
[1751645928233,13.14443467,146.83,146.8,12.90441555]
[1751645928933,13.14443467,146.83,146.79,12.90441555]
[1751645929808,6.3337,146.83,146.79,19.71685556]
[1751645930017,6.3337,146.83,146.81,12.90441555]
[1751645930213,6.3337,146.83,146.8,12.90441555]
[1751645930416,6.3337,146.83,146.81,12.90441555]
[1751645930922,6.3337,146.83,146.8,12.90441555]
[1751645931343,13.14432271,146.83,146.8,12.90441555]
[1751645931849,13.14432271,146.83,146.76,0.2]
[1751645932014,12.90441555,146.81,146.77,12.90441555]
[1751645932343,102.70441555,146.82,146.78,12.90441555]
[1751645933035,109.51590726,146.82,146.78,12.90441555]
[1751645934311,96.61149171,146.82,146.76,13.10441555]
[1751645934527,12.90441555,146.81,146.77,12.90441555]
[1751645935046,6.8119891,146.8,146.77,12.90441555]
[1751645935210,109.51640465,146.8,146.76,13.10441555]
[1751645935817,96.6119891,146.8,146.76,13.10441555]
[1751645936017,109.51640465,146.8,146.76,13.10441555]
[1751645936725,109.51640465,146.8,146.76,0.2]
[1751645936731,12.90441555,146.78,146.76,0.2]
[1751645937238,6.81338148,146.77,146.76,0.2]
[1751645939040,14.32957204,146.77,146.76,0.2]
[1751645939541,20.39377204,146.77,146.76,0.2]
[1751645939914,6.0642,146.77,146.76,0.2]
[1751645941119,1.6375,146.76,146.75,0.2]
[1751645941334,34.61718515,146.76,146.75,0.2]
[1751645941539,18.64964886,146.74,146.7,0.2]
[1751645941858,27.80333942,146.71,146.7,0.2]
[1751645942156,34.21653942,146.71,146.7,1e-08]
[1751645942346,18.64964886,146.7,146.57,6.82267858]
[1751645942554,7.51619056,146.64,146.57,6.82267858]
[1751645942758,18.64964886,146.68,146.6,7.51619056]
[1751645942930,7.51619056,146.65,146.6,7.51619056]
[1751645943133,6.81988678,146.63,146.56,6.82304107]
[1751645943334,7.51619056,146.61,146.57,7.51619056]
[1751645943671,7.51619056,146.61,146.56,7.51619056]
[1751645943855,7.51619056,146.61,146.55,0.1]
[1751645943856,12.91635704,146.61,146.55,0.1]
[1751645944038,12.91635704,146.6,146.55,13.01635704]
[1751645944233,18.64964886,146.62,146.55,0.1]
[1751645944756,8.1696,146.63,146.55,6.92338383]
[1751645945462,8.1696,146.63,146.6,12.91635704]
[1751645945769,8.1696,146.63,146.59,12.91635704]
[1751645945962,8.1696,146.63,146.55,49.98240805]
[1751645945963,12.91635704,146.61,146.55,6.92338383]
[1751645946132,8.1696,146.63,146.55,0.1]
[1751645946133,18.64964886,146.62,146.55,0.1]
[1751645946331,18.64964886,146.62,146.55,6.92351962]
[1751645946638,12.91635704,146.62,146.55,6.92351962]
[1751645946940,8.1696,146.63,146.55,23.98254384]
[1751645947255,8.1696,146.63,146.55,49.98254384]
[1751645948034,8.1696,146.63,146.6,12.91635704]
[1751645948229,8.1696,146.63,146.55,49.98254384]
[1751645948431,8.1696,146.63,146.6,12.91635704]
[1751645949185,8.1696,146.63,146.55,49.98254384]
[1751645949858,8.1696,146.63,146.6,12.91635704]
[1751645950076,8.1696,146.63,146.55,49.98254384]
[1751645950542,8.1696,146.63,146.6,12.91635704]
[1751645950743,8.1696,146.63,146.59,6.82152112]
[1751645950964,8.1696,146.63,146.6,12.91635704]
[1751645951161,21.08595704,146.63,146.56,6.8231441]
[1751645951347,8.1696,146.63,146.59,12.91635704]
[1751645951670,8.1696,146.63,146.56,6.8231441]
[1751645951671,8.1696,146.63,146.62,12.91635704]
[1751645951848,6.657,146.63,146.62,12.91635704]
[1751645952052,8.32,146.66,146.62,12.91635704]
[1751645952364,8.32,146.66,146.58,26.0]
[1751645952750,21.23635704,146.66,146.62,12.91635704]
[1751645952969,98.12,146.66,146.59,6.82174773]
[1751645953149,98.12,146.66,146.55,18.74964886]
[1751645953150,12.91635704,146.63,146.55,17.15805405]
[1751645953350,12.91635704,146.63,146.59,12.91635704]
[1751645953856,12.91635704,146.63,146.56,6.8231441]
[1751645954051,12.91635704,146.61,146.56,12.91635704]
[1751645954257,110.47855704,146.6,146.55,13.01635704]
[1751645954571,12.91635704,146.57,146.55,0.1]
[1751645954754,12.91635704,146.58,146.55,0.1]
[1751645955772,14.58359111,146.6,146.55,0.1]
[1751645955940,14.58359111,146.6,146.56,12.91635704]
[1751645955941,7.7622,146.6,146.56,12.91635704]
[1751645956149,12.91635704,146.59,146.55,13.01635704]
[1751645956383,7.7622,146.6,146.56,12.91635704]
[1751645956584,7.7622,146.6,146.55,6.92346859]
[1751645956585,7.8511,146.64,146.6,6.8212824]
[1751645956893,7.8511,146.64,146.62,12.91635704]
[1751645957079,7.8511,146.64,146.57,0.2]
[1751645957274,12.91635704,146.63,146.59,12.91635704]
[1751645957476,7.8511,146.64,146.61,12.91635704]
[1751645958709,7.8511,146.64,146.58,6.82221312]
[1751645958998,12.91635704,146.62,146.58,12.91635704]
[1751645959204,18.64964886,146.63,146.57,0.2]
[1751645959702,12.91635704,146.58,146.57,0.2]
[1751645960070,39.7336059,146.58,146.55,0.1]
[1751645960375,18.64964886,146.56,146.55,0.1]
[1751645960563,16.8476,146.58,146.55,0.1]
[1751645960769,38.38915,146.56,146.55,0.1]
[1751645961087,16.8476,146.58,146.55,0.1]
[1751645961269,8.1676,146.58,146.55,13.01635704]
[1751645961473,14.98985612,146.58,146.55,13.01635704]
[1751645961671,14.98985612,146.58,146.57,12.91635704]
[1751645961672,8.1676,146.58,146.57,12.91635704]
[1751645961869,8.1676,146.58,146.56,12.91635704]
[1751645962072,8.1676,146.58,146.55,13.01635704]
[1751645962268,8.1676,146.58,146.55,0.1]
[1751645962491,8.1676,146.58,146.55,13.01635704]
[1751645962678,8.1676,146.58,146.55,0.1]
[1751645962993,14.98982259,146.58,146.55,0.1]
[1751645963290,31.5660059,146.56,146.55,0.1]
[1751645964683,38.38915,146.56,146.55,0.1]
[1751645965084,89.8,146.57,146.55,0.1]
[1751645965289,109.53934184,146.57,146.55,0.1]
[1751645965499,31.5660059,146.56,146.55,0.1]
[1751645966883,38.38915,146.56,146.55,0.1]
[1751645967690,19.73950114,146.56,146.55,0.1]
[1751645968596,38.38915,146.56,146.55,0.1]
[1751645970101,18.64964886,146.55,146.52,0.2]
[1751645970305,12.91635704,146.53,146.52,0.2]
[1751645970517,18.64964886,146.55,146.52,0.2]
[1751645970880,12.91635704,146.54,146.52,0.2]
[1751645971299,12.91635704,146.55,146.52,0.2]
[1751645971474,6.8228658,146.57,146.52,13.11635704]
[1751645971677,12.91635704,146.53,146.52,0.2]
[1751645972108,31.5660059,146.53,146.52,0.2]
[1751645973711,25.4741899,146.53,146.52,0.2]
[1751645974217,38.39054694,146.53,146.52,0.2]
[1751645974713,25.4741899,146.53,146.52,0.2]
[1751645974870,15.50426927,146.54,146.52,0.2]
[1751645975077,8.68,146.54,146.52,0.2]
[1751645975294,15.50412381,146.54,146.52,0.2]
[1751645975501,12.91635704,146.53,146.52,0.2]
[1751645975703,38.39054694,146.53,146.52,0.2]
[1751645978209,44.63924694,146.53,146.52,1e-08]
[1751645978390,46.26634694,146.53,146.52,1e-08]
[1751645978579,136.06634694,146.53,146.52,1e-08]
[1751645979497,46.26634694,146.53,146.52,1e-08]
[1751645979804,66.78634694,146.53,146.52,1e-08]
[1751645980326,39.16964886,146.5,146.48,0.1]
[1751645980508,12.91635704,146.49,146.48,0.1]
[1751645980914,20.52,146.5,146.48,0.1]
[1751645981214,31.5660059,146.49,146.48,0.1]
[1751645981411,18.64964886,146.49,146.48,0.1]
[1751645981614,31.5660059,146.49,146.48,0.1]
[1751645981813,38.39241043,146.49,146.48,0.1]
[1751645982419,6.82640453,146.49,146.48,0.1]
[1751645982742,38.39241043,146.49,146.48,0.1]
[1751645983041,19.74276157,146.49,146.48,0.1]
[1751645983236,6.82640453,146.49,146.48,0.1]
[1751645984420,19.74276157,146.49,146.48,0.1]
[1751645984621,6.82640453,146.49,146.48,0.1]
[1751645984833,6.82612187,146.5,146.48,0.1]
[1751645985216,19.74247891,146.5,146.48,0.1]
[1751645985739,239.5,146.52,146.48,0.1]
[1751645985914,259.24162662,146.52,146.48,13.01635704]
[1751645986110,18.64964886,146.51,146.48,0.1]
[1751645986312,19.74276157,146.49,146.48,0.1]
[1751645986508,24.77895284,146.49,146.48,0.1]
[1751645988320,19.74276157,146.49,146.48,0.1]
[1751645988933,43.43025307,146.49,146.48,0.1]
[1751645990207,18.64964886,146.48,146.46,0.1]
[1751645990412,38.39334255,146.47,146.46,0.1]
[1751645990631,44.53344255,146.47,146.46,0.1]
[1751645991716,31.61708551,146.47,146.46,0.1]
[1751645991921,19.74369369,146.47,146.46,0.1]
[1751645992320,12.91635704,146.48,146.46,0.1]
[1751645992634,6.82593856,146.5,146.46,0.1]
[1751645992939,12.91635704,146.47,146.46,0.1]
[1751645993438,31.5660059,146.47,146.46,0.1]
[1751645994424,38.39334255,146.47,146.46,0.1]
[1751645995947,19.74369369,146.47,146.46,0.1]
[1751645996119,12.91635704,146.48,146.46,0.1]
[1751645996316,19.74276157,146.49,146.46,0.1]
[1751645996654,12.91635704,146.48,146.46,0.1]
[1751645998544,19.74369369,146.47,146.46,0.1]
[1751645998761,6.82733665,146.47,146.46,0.1]
[1751645998938,19.74369369,146.47,146.46,0.1]
[1751645999144,38.39334255,146.47,146.46,0.1]
[1751645999645,18.64964886,146.46,146.4,0.1]
[1751645999842,12.91635704,146.43,146.4,0.1]
[1751646000425,6.82966807,146.42,146.4,0.1]
[1751646000627,6.82941798,146.43,146.4,13.01635704]
[1751646000929,12.91635704,146.41,146.4,0.1]
[1751646001454,19.74577502,146.43,146.4,0.1]
[1751646001662,19.74522097,146.44,146.4,13.01635704]
[1751646001849,8.76,146.46,146.42,12.91635704]
[1751646002151,6.82733665,146.47,146.43,12.91635704]
[1751646002451,19.74369369,146.47,146.43,12.91635704]
[1751646002632,28.00695704,146.49,146.45,12.91635704]
[1751646002838,21.91720244,146.49,146.45,12.91635704]
[1751646003230,34.83355948,146.49,146.45,12.91635704]
[1751646003441,34.83355948,146.49,146.41,6.83013455]
[1751646003649,34.83355948,146.49,146.45,12.91635704]
[1751646004840,12.91635704,146.48,146.45,12.91635704]
[1751646005050,34.83355948,146.49,146.45,12.91635704]
[1751646005555,89.8,146.52,146.48,12.91635704]
[1751646005767,96.6250199,146.52,146.49,12.91635704]
[1751646005932,96.6250199,146.52,146.47,12.91635704]
[1751646005933,12.91635704,146.51,146.47,12.91635704]
[1751646006140,96.6250199,146.52,146.47,12.91635704]
[1751646006340,96.6250199,146.52,146.48,12.91635704]
[1751646006641,109.54137694,146.52,146.48,12.91635704]
[1751646006846,109.54137694,146.52,146.44,6.82873531]
[1751646007154,109.54137694,146.52,146.48,12.91635704]
[1751646007333,89.8,146.52,146.5,12.91635704]
[1751646007540,96.62520796,146.52,146.49,12.91635704]
[1751646007728,109.541565,146.52,146.48,12.91635704]
[1751646007931,96.62520796,146.52,146.48,12.91635704]
[1751646008147,12.91635704,146.51,146.47,12.91635704]
[1751646008362,12.91635704,146.5,146.46,12.91635704]
[1751646008664,12.91635704,146.5,146.43,6.82902348]
[1751646008665,12.91635704,146.49,146.45,12.91635704]
[1751646008839,89.8,146.5,146.45,12.91635704]
[1751646009040,102.71635704,146.5,146.43,6.82920166]
[1751646009241,102.71635704,146.5,146.46,12.91635704]
[1751646009767,109.54237842,146.5,146.43,6.82920166]
[1751646010065,109.54237842,146.5,146.46,12.91635704]
[1751646010732,96.62602138,146.5,146.46,12.91635704]
[1751646010929,109.54237842,146.5,146.46,12.91635704]
[1751646011134,98.21042138,146.5,146.42,8.26296418]
[1751646011335,98.21042138,146.5,146.44,12.91635704]
[1751646011336,89.8,146.49,146.44,12.91635704]
[1751646011764,102.71635704,146.49,146.42,8.26296418]
[1751646011947,102.71635704,146.49,146.45,12.91635704]
[1751646012143,89.8,146.48,146.45,12.91635704]
[1751646012350,89.8,146.48,146.41,12.91635704]
[1751646012351,12.91635704,146.46,146.41,12.91635704]
[1751646012548,102.71635704,146.45,146.41,12.91635704]
[1751646012747,12.91635704,146.44,146.4,0.1]
[1751646013068,12.91635704,146.44,146.4,13.01635704]
[1751646013359,12.91635704,146.44,146.4,0.1]
[1751646013566,12.91635704,146.44,146.4,13.01635704]
[1751646013749,12.91635704,146.45,146.41,12.91635704]
[1751646014548,19.7449696,146.45,146.41,12.91635704]
[1751646014752,12.91635704,146.45,146.41,12.91635704]
[1751646014964,12.91635704,146.45,146.4,0.1]
[1751646015171,12.91635704,146.45,146.42,12.91635704]
[1751646015349,96.6278444,146.46,146.41,6.83003318]
[1751646015550,64.30934886,146.45,146.4,0.1]
[1751646015853,12.91635704,146.41,146.4,0.1]
[1751646016056,31.5660059,146.41,146.4,0.1]
[1751646016456,38.39614045,146.41,146.4,0.1]
[1751646016651,25.47978341,146.41,146.4,0.1]
[1751646016862,43.45571796,146.41,146.4,0.1]
[1751646017368,51.34521796,146.41,146.4,0.1]
[1751646017573,1.5737,146.36,146.22,1.4367499]
[1751646017871,12.91635704,146.34,146.22,1.4367499]
[1751646018051,18.64964886,146.33,146.22,14.35310694]
[1751646018247,18.64964886,146.33,146.21,6.83947139]
[1751646018248,18.64964886,146.28,146.21,12.91635704]
[1751646018466,18.64964886,146.31,146.16,38.91635704]
[1751646018467,12.91635704,146.27,146.17,23.94472189]
[1751646018650,6.83480281,146.31,146.17,23.94472189]
[1751646018847,12.91635704,146.26,146.17,23.94472189]
[1751646019077,12.91635704,146.26,146.21,12.91635704]
[1751646019258,18.64964886,146.3,146.17,16.10337278]
[1751646019457,12.91635704,146.27,146.17,16.10337278]
[1751646019860,12.91635704,146.27,146.22,12.91635704]
[1751646020377,18.64964886,146.22,146.1,3.43503519]
[1751646020681,18.64964886,146.27,146.12,26.0]
[1751646020857,12.91635704,146.23,146.12,26.0]
[1751646021172,18.64964886,146.23,146.17,12.91635704]
[1751646021377,9.02,146.24,146.13,18.64964886]
[1751646021577,9.02,146.24,146.21,12.91635704]
[1751646022076,9.02,146.24,146.2,12.91635704]
[1751646022251,18.64964886,146.27,146.23,12.91635704]
[1751646022453,6.3158,146.28,146.17,23.94472189]
[1751646022653,13.1523723,146.28,146.2,12.91635704]
[1751646022979,6.3158,146.28,146.24,12.91635704]
[1751646023147,3.43265843,146.33,146.18,0.68408811]
[1751646023349,12.91635704,146.24,146.19,12.91635704]
[1751646023570,38.72,146.32,146.18,12.91635704]
[1751646023571,12.91635704,146.22,146.18,12.91635704]
[1751646023779,38.72,146.23,146.09,0.68450954]
[1751646024088,38.72,146.23,146.14,12.91635704]
[1751646024089,12.91635704,146.19,146.14,12.91635704]
[1751646024251,12.91635704,146.2,146.15,12.91635704]
[1751646024456,18.64964886,146.15,146.08,5.36627385]
[1751646024678,12.91635704,146.14,146.09,12.91635704]
[1751646024981,19.15895704,146.17,146.08,12.31174402]
[1751646025156,6.2426,146.17,146.08,12.31174402]
[1751646025355,12.91635704,146.15,146.1,12.91635704]
[1751646025563,12.91635704,146.15,146.08,12.31174402]
[1751646025764,6.2426,146.17,146.11,12.91635704]
[1751646026053,18.64964886,146.13,146.08,5.46627385]
[1751646026267,12.91635704,146.13,146.08,18.38263089]
[1751646026454,18.64964886,146.16,146.08,18.38263089]
[1751646026658,12.91635704,146.12,146.08,5.46627385]
[1751646026884,40.244,146.11,146.08,1e-08]
[1751646027072,52.0860059,146.09,146.08,1e-08]
[1751646027376,1.564,146.11,146.08,1e-08]
[1751646027878,6.84181718,146.16,146.08,1e-08]
[1751646028266,6.2426,146.17,146.11,12.91635704]
[1751646028468,6.84029101,146.2,146.13,12.91635704]
[1751646028780,12.91635704,146.2,146.1,26.0]
[1751646028979,12.91635704,146.11,146.08,1e-08]
[1751646029167,31.45404751,146.21,146.09,12.91635704]
[1751646029364,38.91635704,146.14,146.09,12.91635704]
[1751646029776,38.91635704,146.1,146.08,1e-08]
[1751646030065,31.5660059,146.09,146.08,1e-08]
[1751646030598,31.5660059,146.09,145.98,5.0]
[1751646030599,26.0,146.06,145.98,5.0]
[1751646030765,12.91635704,146.01,145.98,5.0]
[1751646031689,38.41485186,146.01,145.98,5.0]
[1751646032295,20.52,145.99,145.98,1e-08]
[1751646032508,26.0,145.93,145.92,1.4367499]
[1751646032793,18.64964886,145.92,145.83,1.0]
[1751646032966,18.64964886,145.93,145.84,12.91635704]
[1751646034373,8.03347405,145.94,145.91,18.74776928]
[1751646034566,8.03347405,145.94,145.93,18.74776928]
[1751646034764,8.03347405,145.94,145.9,26.0]
[1751646034964,8.03347405,145.94,145.93,18.74776928]
[1751646035227,8.03347405,145.94,145.84,0.68568294]
[1751646035371,18.74776928,145.9,145.83,9.40208373]
[1751646035576,18.74776928,145.91,145.86,18.74776928]
[1751646035795,18.74776928,145.92,145.83,26.54533271]
[1751646035998,18.74776928,145.91,145.86,18.74776928]
[1751646036204,8.03347405,145.94,145.88,18.74776928]
[1751646036491,18.74776928,145.93,145.87,18.74776928]
[1751646036690,26.0,145.85,145.83,2.544795]
[1751646036892,44.74776928,145.84,145.83,2.544795]
[1751646037198,44.64964886,145.84,145.83,2.544795]
[1751646037494,63.39741814,145.84,145.75,0.031]
[1751646037712,40.14,145.88,145.75,0.031]
[1751646037713,37.49553856,145.8,145.75,0.031]
[1751646038004,6.85871056,145.8,145.75,0.031]
[1751646038201,18.74776928,145.8,145.75,0.031]
[1751646038776,18.74776928,145.8,145.75,6.89197882]
[1751646038994,38.94707844,145.83,145.77,18.74776928]
[1751646038995,32.0897,145.83,145.77,18.74776928]
[1751646039190,44.74776928,145.83,145.75,0.031]
[1751646039387,32.85740463,145.83,145.75,0.031]
[1751646039601,26.0,145.83,145.78,6.85962088]
[1751646039804,18.74776928,145.83,145.79,12.28571209]
[1751646040008,18.74776928,145.84,145.79,31.03348137]
[1751646040237,20.52,145.86,145.79,5.42656906]
[1751646040391,18.64964886,145.85,145.79,5.42656906]
[1751646040798,18.74776928,145.81,145.79,5.42656906]
[1751646041316,16.73548582,145.87,145.79,5.42656906]
[1751646041611,16.73548582,145.87,145.8,18.74776928]
[1751646041612,18.74776928,145.86,145.8,18.74776928]
[1751646041823,9.88,145.87,145.79,12.28572222]
[1751646041987,9.88,145.87,145.79,29.43367475]
[1751646042180,9.88,145.87,145.82,18.74776928]
[1751646042380,18.64964886,145.92,145.86,18.74776928]
[1751646042584,16.1925,145.98,145.91,18.74776928]
[1751646042801,9.88,146.06,145.93,18.74776928]
[1751646043110,9.88,146.06,145.9,18.74776928]
[1751646043111,18.74776928,146.01,145.95,18.74776928]
[1751646043315,18.74776928,146.0,145.89,18.64964886]
[1751646043485,18.74776928,146.03,145.97,18.74776928]
[1751646043680,25.59473949,146.05,145.99,18.74776928]
[1751646044326,18.74776928,146.04,145.99,18.74776928]
[1751646044519,6.84697021,146.05,145.92,18.64964886]
[1751646044820,6.84697021,146.05,145.98,18.74776928]
[1751646045022,6.84697021,146.05,145.99,18.74776928]
[1751646045197,18.74776928,146.04,145.99,18.74776928]
[1751646045519,44.74776928,146.04,145.99,18.74776928]
[1751646045702,18.74776928,146.04,145.99,18.74776928]
[1751646046020,18.74776928,146.0,145.95,18.74776928]
[1751646046322,18.74776928,146.0,145.94,18.74776928]
[1751646046523,18.74776928,145.99,145.94,18.74776928]
[1751646046730,18.74776928,146.0,145.92,6.85307017]
[1751646046925,32.84790796,146.03,145.95,18.74776928]
[1751646047103,18.74776928,146.01,145.92,23.9857456]
[1751646047425,18.74776928,146.0,145.95,18.74776928]
[1751646047608,32.84790796,146.03,145.95,18.74776928]
[1751646047924,6.85025345,145.98,145.92,18.74776928]
[1751646048128,26.0,146.0,145.96,18.74776928]
[1751646048318,18.74776928,146.02,145.91,18.64964886]
[1751646048622,18.74776928,146.02,145.97,18.74776928]
[1751646049403,6.84884596,146.01,145.97,18.74776928]
[1751646050198,6.84743905,146.04,145.99,18.74776928]
[1751646050421,25.59520833,146.04,145.99,18.74776928]
[1751646050637,18.74776928,146.02,145.92,23.9857456]
[1751646050829,6.84743905,146.04,145.92,23.9857456]
[1751646050830,18.64964886,146.03,145.95,18.74776928]
[1751646051031,18.74776928,145.97,145.92,6.85307017]
[1751646051328,18.74776928,145.95,145.87,18.64964886]
[1751646051538,25.59947193,145.95,145.9,18.74776928]
[1751646051908,6.85170265,145.95,145.91,18.74776928]
[1751646052115,25.59947193,145.95,145.91,18.74776928]
[1751646052311,25.59909014,145.96,145.91,18.74776928]